bitfinex/quotes_BTCUSD_20250617
["timestamp","ask_amount","ask_price","bid_price","bid_amount"]
[1750188752991,1.27679514,105080.0,105070.0,6e-05]
[1750188753211,1.27679514,105080.0,105070.0,0.19040929]
[1750188753429,1.27679514,105080.0,105070.0,0.00957746]
[1750188753661,1.27679514,105080.0,105070.0,6e-05]
[1750188753875,1.30779514,105080.0,105070.0,6e-05]
[1750188755962,1.84562274,105080.0,105070.0,6e-05]
[1750188756383,1.33879514,105080.0,105070.0,6e-05]
[1750188756588,1.30779514,105080.0,105070.0,6e-05]
[1750188759081,1.30779514,105080.0,105070.0,0.20944376]
[1750188759298,0.72619124,105080.0,105070.0,0.20944358]
[1750188759507,0.94619124,105080.0,105070.0,0.19992657]
[1750188759714,0.93667514,105080.0,105070.0,0.19992657]
[1750188759925,0.92711877,105080.0,105070.0,0.19992657]
[1750188760542,0.92711877,105080.0,105070.0,0.19040929]
[1750188760756,0.92711877,105080.0,105070.0,0.19992675]
[1750188761094,0.92711877,105080.0,105070.0,0.20944412]
[1750188761508,0.92711877,105080.0,105070.0,0.2189614]
[1750188761758,0.92711877,105080.0,105070.0,0.22847859]
[1750188762273,0.92711877,105080.0,105070.0,0.20944412]
[1750188762493,0.92711877,105080.0,105070.0,0.2189614]
[1750188762704,0.92711877,105080.0,105070.0,0.22847859]
[1750188763157,0.9461516,105080.0,105070.0,0.23799569]
[1750188763373,0.9461516,105080.0,105070.0,0.2189614]
[1750188763589,0.9461516,105080.0,105070.0,0.22847859]
[1750188763816,0.9461116,105080.0,105070.0,0.23799551]
[1750188764037,0.01951574,105080.0,105070.0,0.23799488]
[1750188764271,0.01951583,105080.0,105070.0,0.30049488]
[1750188764494,0.06899583,105080.0,105070.0,0.30049488]
[1750188764710,0.03854803,105080.0,105070.0,0.26979488]
[1750188764926,0.4863662,105080.0,105070.0,0.26979488]
[1750188765143,0.50539867,105080.0,105070.0,0.26979488]
[1750188765596,0.43688629,105080.0,105070.0,0.26979488]
[1750188765815,0.44640257,105080.0,105070.0,0.26979488]
[1750188766032,0.44640266,105080.0,105070.0,0.26979488]
[1750188766707,0.44640257,105080.0,105070.0,0.26979488]
[1750188767126,0.43688629,105080.0,105070.0,0.26979488]
[1750188767338,0.44640266,105080.0,105070.0,0.26979488]
[1750188768022,0.45591894,105080.0,105070.0,0.29219277]
[1750188768247,0.44640257,105080.0,105070.0,0.29219277]
[1750188768903,0.65576657,105080.0,105070.0,0.29219277]
[1750188769089,0.65576729,105080.0,105070.0,0.29219277]
[1750188769247,0.63673428,105080.0,105070.0,0.29219277]
[1750188769544,0.45591957,105080.0,105070.0,0.29219277]
[1750188769741,0.44640311,105080.0,105070.0,0.29219277]
[1750188769949,0.43688629,105080.0,105070.0,0.29219277]
[1750188770145,0.44640266,105080.0,105070.0,0.29219277]
[1750188771019,0.43688638,105080.0,105070.0,0.29219277]
[1750188771276,0.44640221,105080.0,105070.0,0.29219277]
[1750188772465,0.42737019,105080.0,105070.0,0.29219277]
[1750188772676,0.03854803,105080.0,105070.0,0.29219277]
[1750188772891,0.4368862,105080.0,105070.0,0.29219277]
[1750188773096,0.43688611,105080.0,105070.0,0.29219277]
[1750188773531,0.4464023,105080.0,105070.0,0.29219277]
[1750188773741,0.44640221,105080.0,105070.0,0.29219277]
[1750188773951,0.43688611,105080.0,105070.0,0.29219277]
[1750188774175,0.44640221,105080.0,105070.0,0.29219277]
[1750188774414,0.34,105070.0,105050.0,0.02795424]
[1750188774634,0.06907501,105050.0,105040.0,0.23444983]
[1750188774852,0.42689155,105050.0,105040.0,0.24396937]
[1750188775070,0.43641037,105050.0,105040.0,0.24396937]
[1750188775261,0.44592946,105050.0,105040.0,0.24396937]
[1750188775519,0.42689155,105050.0,105040.0,0.24396937]
[1750188775971,0.41737291,105050.0,105040.0,0.24396937]
[1750188776195,0.05003447,105070.0,105060.0,0.01903609]
[1750188776423,0.45788829,105070.0,105060.0,0.2284394]
[1750188776637,0.79695495,105070.0,105060.0,0.23719674]
[1750188776856,0.79695495,105070.0,105060.0,0.21816092]
[1750188777130,0.8990673,105070.0,105060.0,0.21816098]
[1750188777342,0.88955047,105070.0,105060.0,0.21816098]
[1750188777779,0.88003337,105070.0,105060.0,0.20864308]
[1750188778004,0.870516,105070.0,105060.0,0.20864308]
[1750188778229,0.874516,105070.0,105060.0,0.20864308]
[1750188778463,0.908016,105070.0,105060.0,0.20846706]
[1750188778686,0.73666064,105070.0,105060.0,0.23702088]
[1750188778913,0.53500045,105070.0,105060.0,0.25846357]
[1750188779125,0.55403419,105070.0,105060.0,0.25846357]
[1750188779341,0.56355147,105070.0,105060.0,0.22826357]
[1750188779574,0.72419419,105070.0,105060.0,0.22826357]
[1750188779782,0.73367147,105070.0,105060.0,0.22826357]
[1750188780887,0.55403419,105070.0,105060.0,0.22826357]
[1750188781095,0.72415419,105070.0,105060.0,0.22826357]
[1750188781319,0.02503337,105070.0,105060.0,0.22826357]
[1750188781528,0.55403428,105070.0,105060.0,0.22826357]
[1750188781819,0.54451709,105070.0,105060.0,0.22826357]
[1750188782453,0.5540341,105070.0,105060.0,0.22826357]
[1750188783291,0.5540341,105070.0,105060.0,0.22766478]
[1750188783714,0.53500008,105070.0,105060.0,0.22766478]
[1750188784164,0.006,105070.0,105060.0,0.38800654]
[1750188784359,0.01551673,105070.0,105060.0,0.38316078]
[1750188784590,0.01551673,105070.0,105060.0,0.44744129]
[1750188784591,0.54451728,105070.0,105060.0,0.44744129]
[1750188784861,0.55403447,105070.0,105060.0,0.42565902]
[1750188785321,0.55403447,105070.0,105060.0,0.39770478]
[1750188785764,0.53500027,105070.0,105060.0,0.39770478]
[1750188786202,0.53500027,105070.0,105060.0,0.39766478]
[1750188786408,0.53500027,105070.0,105060.0,0.42007707]
[1750188786626,0.52548354,105070.0,105060.0,0.44803131]
[1750188786842,0.51596671,105070.0,105060.0,0.42007707]
[1750188787063,0.52548344,105070.0,105060.0,0.44803131]
[1750188787741,0.53500036,105070.0,105060.0,0.44803131]
[1750188787959,0.53500036,105070.0,105060.0,0.42007707]
[1750188788184,0.52548344,105070.0,105060.0,0.42007707]
[1750188788435,0.53500036,105070.0,105060.0,0.42007707]
[1750188788644,0.51596671,105070.0,105060.0,0.42007707]
[1750188788871,0.51596671,105070.0,105060.0,0.57457307]
[1750188788872,0.006,105070.0,105060.0,0.57457307]
[1750188789088,0.006,105070.0,105060.0,1.00918558]
[1750188789308,0.006,105070.0,105060.0,1.55063894]
[1750188789519,0.51947973,105110.0,105100.0,0.21883809]
[1750188789745,0.02853961,105110.0,105100.0,0.24125038]
[1750188789954,0.54801998,105110.0,105100.0,0.24125038]
[1750188790167,0.96100445,105110.0,105100.0,0.19029495]
[1750188790373,0.79989033,105110.0,105100.0,0.20932416]
[1750188790606,0.96981033,105110.0,105100.0,0.21883854]
[1750188790815,0.96981033,105110.0,105100.0,0.23786703]
[1750188791018,0.96981033,105110.0,105100.0,0.23035283]
[1750188791655,0.96029694,105110.0,105100.0,0.21132416]
[1750188792000,0.96029694,105110.0,105100.0,0.21532416]
[1750188792268,0.96029694,105110.0,105100.0,0.22483845]
[1750188793394,0.96029694,105110.0,105100.0,0.21532434]
[1750188793612,0.96029694,105110.0,105100.0,0.23435337]
[1750188793832,0.96029694,105110.0,105100.0,0.24386766]
[1750188794052,0.74001964,105110.0,105100.0,0.24386766]
[1750188794268,0.74001964,105110.0,105100.0,0.24386703]
[1750188794541,0.74953339,105110.0,105100.0,0.24386703]
[1750188794805,0.94932408,105110.0,105100.0,0.23435301]
[1750188795026,0.9788115,105120.0,105110.0,0.21881755]
[1750188795237,0.98736609,105120.0,105110.0,0.21881755]
[1750188795462,1.35693735,105120.0,105110.0,0.21881755]
[1750188795900,0.19027685,105110.0,105100.0,0.20580933]
[1750188796149,0.76168426,105110.0,105100.0,0.006]
[1750188796366,0.88151291,105110.0,105100.0,0.002]
[1750188796580,0.88151291,105110.0,105080.0,0.24118375]
[1750188796581,0.25165837,105090.0,105080.0,0.24118375]
[1750188796794,0.57131202,105090.0,105080.0,0.26021568]
[1750188797014,0.55228154,105090.0,105080.0,0.23788033]
[1750188797297,0.55228172,105090.0,105080.0,0.26021743]
[1750188797571,0.56179692,105090.0,105080.0,0.26021743]
[1750188797830,0.55228172,105090.0,105080.0,0.23788033]
[1750188798059,0.56179682,105090.0,105080.0,0.23788033]
[1750188798269,0.55228172,105090.0,105080.0,0.23788033]
[1750188798497,0.04231492,105090.0,105080.0,0.23988033]
[1750188798718,0.55228163,105090.0,105080.0,0.23988033]
[1750188798935,0.57131184,105090.0,105080.0,0.24388033]
[1750188799160,0.57131193,105090.0,105080.0,0.24388033]
[1750188799369,0.5808274,105090.0,105080.0,0.24388033]
[1750188799607,0.57131193,105090.0,105080.0,0.24388033]
[1750188799900,0.5808274,105090.0,105080.0,0.24388033]
[1750188800124,0.55228154,105090.0,105080.0,0.24388033]
[1750188800333,0.57131184,105090.0,105080.0,0.24388033]
[1750188800553,0.06134513,105090.0,105080.0,0.24388033]
[1750188800767,0.57131184,105090.0,105080.0,0.24388033]
[1750188800986,0.57994052,105090.0,105080.0,0.24388033]
[1750188801440,0.56179655,105090.0,105080.0,0.24388033]
[1750188801961,0.55228154,105090.0,105080.0,0.24388033]
[1750188802405,0.57131175,105090.0,105080.0,0.24388033]
[1750188802640,0.57990736,105090.0,105080.0,0.24388033]
[1750188803032,0.81043717,105090.0,105080.0,0.21533221]
[1750188803269,0.60109244,105090.0,105080.0,0.23436432]
[1750188803482,0.63661503,105100.0,105090.0,0.21885892]
[1750188803728,0.71030671,105100.0,105090.0,0.21885892]
[1750188803944,0.73884922,105100.0,105090.0,0.21885892]
[1750188804169,0.57872378,105100.0,105090.0,0.21885892]
[1750188804387,0.74832378,105100.0,105090.0,0.21885892]
[1750188804615,0.74832369,105100.0,105090.0,0.21885892]
[1750188804836,0.56920913,105100.0,105090.0,0.21885892]
[1750188805051,0.5787236,105100.0,105090.0,0.21985892]
[1750188805262,0.7785332,105100.0,105090.0,0.21985892]
[1750188805475,0.77853401,105100.0,105090.0,0.21985911]
[1750188805689,0.76901981,105100.0,105090.0,0.22185911]
[1750188805917,0.76901981,105100.0,105090.0,0.21234391]
[1750188806132,0.75950552,105100.0,105090.0,0.21234391]
[1750188806369,0.74999105,105100.0,105090.0,0.212344]
[1750188806808,0.74999105,105100.0,105090.0,0.21234409]
[1750188807024,0.74999105,105100.0,105090.0,0.22185947]
[1750188807252,0.74999105,105100.0,105090.0,0.23137457]
[1750188807543,0.74999105,105100.0,105090.0,0.22185947]
[1750188807772,0.55018109,105100.0,105090.0,0.24088986]
[1750188807967,0.55018109,105100.0,105090.0,0.24088931]
[1750188807968,0.56920976,105100.0,105090.0,0.24088931]
[1750188808386,0.76901945,105100.0,105090.0,0.24088931]
[1750188808822,0.76901945,105100.0,105090.0,0.2313743]
[1750188809032,0.93853945,105100.0,105090.0,0.2313743]
[1750188809266,0.93853945,105100.0,105090.0,0.2218592]
[1750188809736,0.93853945,105100.0,105090.0,0.21234391]
[1750188809939,0.92902534,105100.0,105090.0,0.2218592]
[1750188810148,0.92902534,105100.0,105090.0,0.2408895]
[1750188810328,0.92902534,105100.0,105090.0,0.2313744]
[1750188810560,0.92902534,105100.0,105090.0,0.2408895]
[1750188811536,0.92902534,105100.0,105090.0,0.2313744]
[1750188812186,0.73873039,105100.0,105090.0,0.2313744]
[1750188812400,0.92902534,105100.0,105090.0,0.2408895]
[1750188813044,0.91951096,105100.0,105090.0,0.20282853]
[1750188813473,0.91951096,105100.0,105090.0,0.2218592]
[1750188813949,0.91951096,105100.0,105090.0,0.21234391]
[1750188814154,0.95261096,105100.0,105090.0,0.21234391]
[1750188814366,0.9430964,105100.0,105090.0,0.20282871]
[1750188814577,0.9430964,105100.0,105090.0,0.21234427]
[1750188814794,0.9099964,105100.0,105090.0,0.22185965]
[1750188815013,0.4574946,105100.0,105090.0,0.23137475]
[1750188815311,0.63644862,105100.0,105090.0,0.26328079]
[1750188815528,0.83625822,105100.0,105090.0,0.23137475]
[1750188816165,0.84577296,105100.0,105090.0,0.23137475]
[1750188816369,0.84577296,105100.0,105090.0,0.23137485]
[1750188816585,0.84577296,105100.0,105090.0,0.25377138]
[1750188816805,0.45749406,105100.0,105090.0,0.26328584]
[1750188817022,0.5866795,105100.0,105090.0,0.26328584]
[1750188817244,0.40776557,105100.0,105090.0,0.26328584]
[1750188817682,0.42679352,105100.0,105090.0,0.26328584]
[1750188817900,0.41727959,105100.0,105090.0,0.26328584]
[1750188818781,0.40776557,105100.0,105090.0,0.26328584]
[1750188819006,0.40776557,105100.0,105090.0,0.29120511]
[1750188819230,0.44751094,105110.0,105100.0,0.21883809]
[1750188819448,0.43799755,105110.0,105100.0,0.23172051]
[1750188819669,0.43799755,105110.0,105100.0,0.2412348]
[1750188819910,0.44751139,105110.0,105100.0,0.250749]
[1750188820154,0.43799791,105110.0,105100.0,0.24876954]
[1750188820430,0.82673589,105110.0,105100.0,0.02239653]
[1750188820666,0.82673589,105110.0,105080.0,0.03743582]
[1750188820667,0.24104391,105090.0,105080.0,0.03743582]
[1750188820877,0.24104391,105090.0,105080.0,0.27752737]
[1750188820878,0.87577755,105090.0,105080.0,0.27752737]
[1750188821101,1.06609061,105090.0,105080.0,0.27614097]
[1750188821294,1.06609061,105090.0,105080.0,0.27553579]
[1750188821520,1.06609061,105090.0,105080.0,0.2654146]
[1750188821766,1.06609061,105090.0,105080.0,0.2399453]
[1750188822241,0.25055947,105090.0,105080.0,0.2399453]
[1750188822468,1.06609061,105090.0,105080.0,0.25346131]
[1750188823182,1.06609061,105090.0,105080.0,0.26297723]
[1750188823394,1.06609061,105090.0,105080.0,0.25546131]
[1750188823996,0.87577755,105090.0,105080.0,0.26497723]
[1750188824409,1.06609061,105090.0,105080.0,0.26497723]
[1750188824615,1.07560626,105090.0,105080.0,0.26497723]
[1750188824831,0.86626199,105090.0,105080.0,0.26497723]
[1750188825034,0.44898067,105090.0,105080.0,0.26497723]
[1750188825250,0.42679541,105090.0,105080.0,0.26497723]
[1750188825471,0.43631051,105090.0,105080.0,0.26497723]
[1750188825872,0.43631061,105090.0,105080.0,0.26497723]
[1750188826302,0.40776557,105090.0,105080.0,0.26497723]
[1750188826524,0.4174345,105090.0,105080.0,0.26497723]
[1750188826790,0.44598027,105090.0,105080.0,0.26497723]
[1750188827012,0.47768027,105090.0,105080.0,0.26497723]
[1750188827221,0.4681648,105090.0,105080.0,0.26497723]
[1750188827460,0.4491345,105090.0,105080.0,0.26497723]
[1750188827673,0.0325,105100.0,105090.0,0.21885892]
[1750188827895,0.4172795,105100.0,105090.0,0.24118788]
[1750188828132,0.42679352,105100.0,105090.0,0.24118788]
[1750188828350,0.42679352,105100.0,105090.0,0.24113681]
[1750188828569,0.43630763,105100.0,105090.0,0.24113681]
[1750188828809,0.40776557,105100.0,105090.0,0.24109505]
[1750188829032,0.4172795,105100.0,105090.0,0.24061079]
[1750188829248,0.42679361,105100.0,105090.0,0.24261079]
[1750188829463,0.40776557,105100.0,105090.0,0.24261079]
[1750188829682,0.27206731,105110.0,105100.0,0.2093238]
[1750188829910,0.65930371,105120.0,105100.0,0.27316597]
[1750188830144,0.40776557,105110.0,105100.0,0.24126597]
[1750188830644,0.40776557,105110.0,105100.0,0.27266597]
[1750188830869,0.32624264,105120.0,105110.0,0.21881728]
[1750188831087,0.72449546,105120.0,105110.0,0.24123382]
[1750188831306,0.5458228,105120.0,105110.0,0.24123382]
[1750188831747,0.04261221,105120.0,105110.0,0.24123382]
[1750188831964,0.41727769,105120.0,105110.0,0.23172007]
[1750188832181,0.41927769,105120.0,105110.0,0.23172007]
[1750188832614,0.41727769,105120.0,105110.0,0.23172007]
[1750188832841,0.002,105120.0,105110.0,0.23172007]
[1750188833077,0.004,105120.0,105110.0,0.9684474]
[1750188833299,0.004,105120.0,105110.0,1.3084474]
[1750188833523,0.004,105120.0,105110.0,1.00330423]
[1750188833752,0.004,105120.0,105110.0,1.39287746]
[1750188833987,0.002,105120.0,105110.0,1.39287746]
[1750188834232,0.40976557,105120.0,105110.0,0.85324108]
[1750188834482,0.41076557,105120.0,105110.0,0.96646002]
[1750188834717,0.81853114,105120.0,105110.0,0.29753881]
[1750188834943,0.54095849,105120.0,105110.0,0.24123382]
[1750188835175,0.51055849,105120.0,105110.0,0.24123382]
[1750188835399,0.52407061,105120.0,105110.0,0.24123382]
[1750188835611,0.5390953,105120.0,105110.0,0.41027382]
[1750188835834,0.51907061,105120.0,105110.0,0.41027382]
[1750188836052,0.532583,105120.0,105110.0,0.41027382]
[1750188836265,0.52307061,105120.0,105110.0,0.41027382]
[1750188836469,0.52858282,105120.0,105110.0,0.41027382]
[1750188836901,0.53909521,105120.0,105110.0,0.41027382]
[1750188837107,0.59082062,105120.0,105110.0,0.41027382]
[1750188837317,0.58130769,105120.0,105110.0,0.41027382]
[1750188837534,0.57179521,105120.0,105110.0,0.41027382]
[1750188837765,0.56228282,105120.0,105110.0,0.38785728]
[1750188838205,0.58130805,105120.0,105110.0,0.41019565]
[1750188838451,0.58130805,105120.0,105110.0,0.41970904]
[1750188838671,0.78107973,105120.0,105110.0,0.41019602]
[1750188838881,0.7620554,105120.0,105110.0,0.4101962]
[1750188839101,0.74303017,105120.0,105110.0,0.39116897]
[1750188839302,0.52499751,105120.0,105110.0,0.39116897]
[1750188839727,0.52499751,105120.0,105110.0,0.40068263]
[1750188839938,0.52499751,105120.0,105110.0,0.02233837]
[1750188840155,0.20930408,105110.0,105100.0,0.02233837]
[1750188840368,0.27260408,105110.0,105100.0,0.02233837]
[1750188840572,0.01902813,105100.0,105090.0,0.39729008]
[1750188840801,0.21883737,105100.0,105090.0,0.5158704]
[1750188841011,0.22835193,105100.0,105090.0,0.48732453]
[1750188841220,0.00951393,105100.0,105090.0,0.5063552]
[1750188841429,0.01902804,105100.0,105090.0,0.54677021]
[1750188841669,0.739449,105110.0,105090.0,0.54677021]
[1750188841670,0.24891683,105110.0,105100.0,0.20380951]
[1750188841884,0.24891683,105110.0,105100.0,0.22614788]
[1750188841885,0.25843058,105110.0,105100.0,0.22614788]
[1750188842120,0.75847596,105110.0,105100.0,0.22614806]
[1750188842341,0.24891747,105110.0,105100.0,0.23566253]
[1750188842541,0.24891747,105110.0,105100.0,0.21332416]
[1750188842752,0.24891747,105110.0,105100.0,0.23766789]
[1750188842978,0.24891747,105110.0,105100.0,0.23766807]
[1750188843186,0.24891747,105110.0,105100.0,0.24318263]
[1750188843388,0.24891747,105110.0,105100.0,0.23366807]
[1750188843586,0.24891747,105110.0,105100.0,0.23386701]
[1750188844046,0.74896257,105110.0,105100.0,0.02454267]
[1750188844334,0.85678195,105110.0,105100.0,0.00219894]
[1750188844539,0.86579668,105110.0,105100.0,0.00219894]
[1750188845017,0.7888773,105110.0,105100.0,0.19249389]
[1750188845275,0.31874408,105110.0,105100.0,0.21552301]
[1750188845486,0.31874408,105110.0,105100.0,0.2095231]
[1750188845735,0.31874408,105110.0,105100.0,0.22955195]
[1750188846070,0.31874408,105110.0,105100.0,0.00319894]
[1750188846156,0.82830257,105110.0,105100.0,0.00319894]
[1750188846410,0.77986257,105110.0,105100.0,0.00319894]
[1750188846678,0.99710257,105110.0,105100.0,0.00319894]
[1750188846920,0.98758909,105110.0,105100.0,0.20300863]
[1750188847157,0.99710293,105110.0,105100.0,0.22203757]
[1750188847378,0.99710293,105110.0,105100.0,0.23155204]
[1750188847620,0.99710293,105110.0,105100.0,0.22203775]
[1750188847843,0.99710293,105110.0,105100.0,0.23155204]
[1750188848497,0.77986293,105110.0,105100.0,0.24106624]
[1750188848715,0.54917151,105110.0,105100.0,0.26342181]
[1750188848946,0.53965849,105110.0,105100.0,0.26342058]
[1750188849157,0.2473,105110.0,105100.0,0.26342058]
[1750188849359,0.25681311,105110.0,105100.0,0.26342058]
[1750188849566,0.26632622,105110.0,105100.0,0.26342058]
[1750188849997,0.2473,105110.0,105100.0,0.26342058]
[1750188850207,0.08805311,105110.0,105100.0,0.26342058]
[1750188850848,0.23733024,105120.0,105110.0,0.21881728]
[1750188851076,0.27625758,105120.0,105110.0,0.21881728]
[1750188851497,0.09526281,105120.0,105110.0,0.21881728]
[1750188851702,0.49695449,105120.0,105110.0,0.20930408]
[1750188851934,0.48744237,105120.0,105110.0,0.20930408]
[1750188852136,1.02028847,105120.0,105110.0,0.20930426]
[1750188852383,1.02128847,105120.0,105110.0,0.21881783]
[1750188852606,1.02128847,105120.0,105110.0,0.22833131]
[1750188852829,1.01177599,105120.0,105110.0,0.1997906]
[1750188853270,1.00300292,105120.0,105110.0,0.21881756]
[1750188853485,1.00300292,105120.0,105110.0,0.1997906]
[1750188853764,1.00300292,105120.0,105110.0,0.20930426]
[1750188853977,1.00300292,105120.0,105110.0,0.21881783]
[1750188854190,1.01208244,105120.0,105110.0,0.21881783]
[1750188855482,1.01208244,105120.0,105110.0,0.20930426]
[1750188855689,1.01208244,105120.0,105110.0,0.1997906]
[1750188855909,0.19027685,105110.0,105100.0,0.19049389]
[1750188856129,0.74234891,105110.0,105100.0,0.22238345]
[1750188856357,0.76403534,105110.0,105100.0,0.20000863]
[1750188856574,0.76403534,105110.0,105100.0,0.00019894]
[1750188856788,0.76403534,105110.0,105100.0,0.20000845]
[1750188857000,0.49090955,105110.0,105100.0,0.20952292]
[1750188857216,0.707949,105110.0,105100.0,0.25193232]
[1750188857430,0.68626266,105110.0,105100.0,0.25193232]
[1750188857636,0.88605326,105110.0,105100.0,0.22338963]
[1750188857855,0.86702658,105110.0,105100.0,0.23490419]
[1750188858072,0.89792658,105110.0,105100.0,0.23490419]
[1750188858323,0.66723571,105110.0,105100.0,0.25381443]
[1750188858542,0.87653933,105110.0,105100.0,0.23478603]
[1750188858791,0.89792622,105110.0,105100.0,0.22527156]
[1750188859452,0.89792622,105110.0,105100.0,0.23478621]
[1750188859902,0.89792622,105110.0,105100.0,0.02546187]
[1750188860123,0.88841283,105110.0,105100.0,0.02546187]
[1750188860995,1.32465459,105110.0,105100.0,0.00308078]
[1750188862189,1.10761459,105110.0,105100.0,0.19337573]
[1750188862404,1.31506093,105110.0,105100.0,0.00308078]
[1750188863062,1.31497893,105110.0,105100.0,0.00308078]
[1750188866423,1.00177717,105110.0,105100.0,0.19337573]
[1750188866640,1.21829717,105110.0,105100.0,0.19337573]
[1750188866863,1.21829717,105110.0,105100.0,0.00308078]
[1750188867525,1.00177717,105110.0,105100.0,0.19337573]
[1750188867745,1.00177717,105110.0,105100.0,0.20289047]
[1750188867746,1.21829717,105110.0,105100.0,0.20289047]
[1750188867976,1.22777083,105110.0,105100.0,0.22191932]
[1750188868206,0.48101371,105110.0,105100.0,0.21240503]
[1750188868432,0.90679779,105110.0,105100.0,0.22191968]
[1750188868616,0.8972844,105110.0,105100.0,0.21240512]
[1750188869580,0.8972844,105110.0,105100.0,0.20228324]
[1750188869761,0.88777092,105110.0,105100.0,0.01058538]
[1750188869985,0.88777092,105110.0,105100.0,0.00107064]
[1750188871741,0.98401268,105110.0,105100.0,0.00107064]
[1750188874947,0.98401268,105110.0,105100.0,0.19136559]
[1750188875146,0.98401268,105110.0,105100.0,0.20088024]
[1750188875623,0.98401268,105110.0,105100.0,0.19136559]
[1750188876054,0.44060032,105110.0,105100.0,0.21990873]
[1750188876263,0.22583311,105110.0,105100.0,0.2726186]
[1750188876470,0.22583302,105110.0,105100.0,0.3032186]
[1750188876759,0.7015323,105120.0,105110.0,0.21881755]
[1750188876966,0.00951212,105120.0,105110.0,0.25074062]
[1750188877203,0.65253913,105120.0,105110.0,0.28104062]
[1750188877405,0.6620517,105120.0,105110.0,0.28104062]
[1750188877621,0.23015358,105130.0,105110.0,0.26201321]
[1750188877622,0.6378359,105130.0,105110.0,0.26201321]
[1750188877832,0.9873464,105130.0,105120.0,0.19977168]
[1750188878067,1.2036264,105130.0,105120.0,0.19977168]
[1750188878276,1.2036264,105130.0,105120.0,0.20928434]
[1750188878667,1.18460297,105130.0,105120.0,0.19977168]
[1750188879175,0.01902469,105120.0,105110.0,0.23960353]
[1750188879390,0.6169663,105120.0,105110.0,0.22218246]
[1750188879610,0.6474663,105120.0,105110.0,0.22218246]
[1750188880548,0.6474663,105120.0,105110.0,0.21881783]
[1750188880777,0.8647063,105120.0,105110.0,0.20930426]
[1750188881222,0.23980426,105110.0,105100.0,0.20932416]
[1750188881451,0.67107301,105110.0,105090.0,0.2400427]
[1750188881673,0.26339069,105110.0,105100.0,0.19980969]
[1750188881917,0.67107301,105110.0,105100.0,0.19980969]
[1750188882144,0.67107301,105110.0,105100.0,0.20932434]
[1750188882367,0.19980951,105100.0,105090.0,0.23734109]
[1750188882595,0.43622591,105100.0,105090.0,0.2468561]
[1750188882822,0.42671099,105100.0,105090.0,0.2468561]
[1750188883028,0.43622555,105100.0,105090.0,0.2468561]
[1750188883233,0.43622519,105100.0,105090.0,0.2468561]
[1750188883484,0.64750648,105100.0,105090.0,0.19982871]
[1750188883716,0.64750648,105100.0,105090.0,0.20934427]
[1750188883941,0.81558648,105100.0,105090.0,0.20934427]
[1750188884158,0.81558648,105100.0,105090.0,0.23237512]
[1750188884567,0.82510122,105100.0,105090.0,0.24189032]
[1750188884993,0.62529063,105100.0,105090.0,0.24188968]
[1750188885222,0.63480519,105100.0,105090.0,0.24388968]
[1750188885921,0.45721063,105100.0,105090.0,0.24388968]
[1750188886156,0.52431957,105100.0,105090.0,0.24388968]
[1750188887756,0.51480501,105100.0,105090.0,0.24388968]
[1750188888502,0.52431957,105100.0,105090.0,0.24388968]
[1750188888772,0.52431948,105100.0,105090.0,0.24388968]
[1750188889573,0.04808,105100.0,105090.0,0.31625603]
[1750188889633,0.7944596,105110.0,105100.0,0.2093238]
[1750188889904,0.8425396,105110.0,105100.0,0.19980951]
[1750188890113,0.8753396,105110.0,105100.0,0.19980951]
[1750188890331,0.8658264,105110.0,105100.0,0.19029495]
[1750188890513,0.8658264,105110.0,105100.0,0.19980969]
[1750188890775,0.6497864,105110.0,105100.0,0.20932425]
[1750188891266,0.8658264,105110.0,105100.0,0.2283531]
[1750188891269,0.8658264,105110.0,105100.0,0.2303531]
[1750188891692,0.675509,105110.0,105100.0,0.23986721]
[1750188891908,0.8424996,105110.0,105100.0,0.2303531]
[1750188892129,0.88441344,105110.0,105100.0,0.2303531]
[1750188892812,0.88441344,105110.0,105100.0,0.23986739]
[1750188893036,0.63601344,105110.0,105100.0,0.23986676]
[1750188893251,0.65182266,105110.0,105100.0,0.23986676]
[1750188893475,0.85161326,105110.0,105100.0,0.23986676]
[1750188893699,0.8611271,105110.0,105100.0,0.23986676]
[1750188893921,0.8836139,105110.0,105100.0,0.20180951]
[1750188894156,0.86458676,105110.0,105100.0,0.19229495]
[1750188894373,0.45690444,105110.0,105100.0,0.002]
[1750188894635,0.86458676,105110.0,105100.0,0.21132434]
[1750188895323,0.84555917,105110.0,105100.0,0.19229495]
[1750188895757,0.84555917,105110.0,105100.0,0.20180969]
[1750188896193,0.84555917,105110.0,105100.0,0.22083872]
[1750188896413,0.43787685,105110.0,105100.0,0.21132434]
[1750188896629,0.84555917,105110.0,105100.0,0.21132434]
[1750188896869,0.84555917,105110.0,105100.0,0.2208389]
[1750188897232,0.84555917,105110.0,105100.0,0.21132434]
[1750188897498,0.84555917,105110.0,105100.0,0.22083872]
[1750188897695,0.85507292,105110.0,105100.0,0.2208389]
[1750188898253,0.85507292,105110.0,105100.0,0.21132434]
[1750188898472,0.85507292,105110.0,105100.0,0.002]
[1750188898473,0.84555917,105110.0,105100.0,0.002]
[1750188898678,0.87615917,105110.0,105100.0,0.002]
[1750188900577,0.87615917,105110.0,105100.0,0.20180969]
[1750188901243,0.87615917,105110.0,105100.0,0.21132434]
[1750188901888,0.87615917,105110.0,105100.0,0.22083881]
[1750188902107,0.84555917,105110.0,105100.0,0.22083881]
[1750188902318,0.85507292,105110.0,105100.0,0.22083881]
[1750188902785,0.85507292,105110.0,105100.0,0.20180969]
[1750188902999,0.88507292,105110.0,105100.0,0.002]
[1750188904376,1.82514622,105110.0,105100.0,0.002]
[1750188904600,1.728997,105110.0,105100.0,0.002]
[1750188904845,1.10571468,105110.0,105100.0,0.19229495]
[1750188905129,0.8171106,105110.0,105100.0,0.2018096]
[1750188905382,1.22479292,105110.0,105100.0,0.002]
[1750188908255,1.22475292,105110.0,105100.0,0.002]
[1750188910451,0.0638,105120.0,105110.0,0.0285407]
[1750188910663,0.05723221,105120.0,105110.0,0.21881691]
[1750188910870,0.24373726,105120.0,105110.0,0.25181691]
[1750188911083,0.66093233,105120.0,105110.0,0.25181691]
[1750188911282,0.86070392,105120.0,105110.0,0.20930371]
[1750188911490,0.67044517,105120.0,105110.0,0.21881691]
[1750188911685,0.64190692,105120.0,105110.0,0.21881691]
[1750188911894,0.66093215,105120.0,105110.0,0.21881691]
[1750188912115,0.49345206,105120.0,105110.0,0.21881691]
[1750188912324,0.66093206,105120.0,105110.0,0.21881691]
[1750188912539,0.45524481,105120.0,105110.0,0.21881691]
[1750188912750,0.67040481,105120.0,105110.0,0.21881691]
[1750188912952,0.67140481,105120.0,105110.0,0.21881691]
[1750188913592,0.66189206,105120.0,105110.0,0.21881691]
[1750188913793,0.6523794,105120.0,105110.0,0.25061691]
[1750188914077,0.64286692,105120.0,105110.0,0.25061691]
[1750188914494,0.66189206,105120.0,105110.0,0.25061691]
[1750188914708,0.67140481,105120.0,105110.0,0.25061691]
[1750188914917,0.6523794,105120.0,105110.0,0.25061691]
[1750188915124,0.64286692,105120.0,105110.0,0.25061691]
[1750188915970,0.82503441,105130.0,105120.0,0.20928434]
[1750188916170,0.8822258,105130.0,105120.0,0.20928434]